bitfinex-derivatives/quotes_ETHF0:USTF0_20251118
["timestamp","ask_amount","ask_price","bid_price","bid_amount"]
[1763442724391,0.21445704,3007.8,3007.7,1.75122218]
[1763442725079,0.21445704,3007.8,3007.3,1.75122218]
[1763442725786,0.2121,3007.2,3007.0,0.26768911]
[1763442726092,0.2121,3007.2,3006.9,1.75122218]
[1763442726278,0.2121,3007.2,3006.9,2.02289837]
[1763442726890,0.21445704,3007.8,3006.9,2.02289837]
[1763442727083,0.21445704,3007.8,3007.7,1.75122218]
[1763442728488,0.56505704,3007.8,3007.3,1.75122218]
[1763442728680,0.21445704,3007.8,3007.3,1.75122218]
[1763442729792,0.3506,3006.9,3006.8,0.00350133]
[1763442730083,0.2121,3007.2,3006.7,0.00332202]
[1763442730990,0.2121,3007.2,3006.7,0.27298107]
[1763442731192,0.2121,3007.2,3006.7,0.00618178]
[1763442732583,0.3506,3006.8,3006.7,0.00618178]
[1763442733183,0.3506,3006.8,3004.0,0.05781975]
[1763442733184,0.2121,3006.0,3005.0,1.75122218]
[1763442733499,0.2121,3005.4,3004.1,1.75122218]
[1763442733798,0.2121,3004.2,3003.7,1.78451501]
[1763442734089,0.2121,3004.8,3004.1,1.75122218]
[1763442734294,0.2121,3004.8,3004.6,1.75122218]
[1763442734685,0.2121,3006.0,3004.6,1.75122218]
[1763442734686,0.2121,3006.0,3004.7,9.62694813]
[1763442734879,0.2121,3006.0,3005.9,1.75122218]
[1763442735084,0.2121,3006.0,3005.9,1.75491019]
[1763442735397,0.21586467,3006.0,3005.9,1.75491019]
[1763442737292,0.21586467,3006.0,3005.9,0.00368801]
[1763442738094,0.21586467,3006.0,3005.9,1.75491019]
[1763442738587,0.00376467,3006.0,3005.9,1.75491019]
[1763442738789,0.2121,3007.2,3005.9,1.75491019]
[1763442738984,0.2121,3006.5,3006.4,1.75122218]
[1763442739595,0.2121,3007.2,3006.4,1.75122218]
[1763442739788,0.00499168,3007.1,3006.6,1.75122218]
[1763442740585,0.00499168,3007.1,3007.0,1.75122218]
[1763442741692,0.00373297,3007.2,3007.0,1.75122218]
[1763442741891,0.2121,3007.9,3007.0,1.75122218]
[1763442742090,0.2121,3007.9,3007.8,1.75122218]
[1763442742996,0.21574067,3007.9,3007.8,1.75122218]
[1763442743203,0.00499168,3008.2,3007.8,1.75122218]
[1763442743394,0.21,3009.3,3008.5,1.75122218]
[1763442743601,0.21,3010.0,3009.6,1.75122218]
[1763442744390,0.21319064,3010.0,3009.6,1.75445674]
[1763442744798,0.21319064,3010.0,3009.6,0.00323456]
[1763442745389,6.21319064,3010.0,3008.2,2.33424044]
[1763442745599,0.21319064,3010.0,3008.2,2.33424044]
[1763442746396,0.21,3009.3,3008.8,0.00499168]
[1763442755710,0.21319064,3010.0,3009.2,2.33424044]
[1763442758512,0.21319064,3010.0,3009.7,2.33424044]
[1763442758708,0.00319064,3010.0,3009.7,2.33424044]
[1763442759211,0.21,3011.4,3009.7,2.33424044]
[1763442759412,0.21,3011.4,3010.6,2.33424044]
[1763442759413,0.2047,3010.8,3010.6,2.33424044]
[1763442760006,0.21,3011.4,3010.6,2.33424044]
[1763442760210,0.00498306,3011.3,3011.1,2.33424044]
[1763442760812,0.00498306,3011.3,3011.1,2.59743821]
[1763442761313,0.3268,3011.2,3011.1,0.26319777]
[1763442761611,0.00498306,3011.3,3010.7,0.00498306]
[1763442762107,0.00498306,3011.3,3010.7,0.26788753]
[1763442762307,0.00498306,3011.3,3010.7,0.00498306]
[1763442762514,0.00498306,3011.3,3011.1,2.33424044]
[1763442764315,0.00498306,3011.3,3010.7,0.27111384]
[1763442765109,0.2047,3010.8,3010.7,0.27111384]
[1763442765613,0.5315,3010.8,3010.7,0.27111384]
[1763442766115,0.2047,3010.8,3010.7,0.27111384]
[1763442766615,0.00498306,3011.3,3010.7,0.27111384]
[1763442766803,0.00498306,3011.3,3011.2,1.74864349]
[1763442767001,0.5315,3010.8,3010.7,0.00498306]
[1763442767219,0.2047,3010.8,3010.7,0.00498306]
[1763442767717,0.2047,3010.8,3010.7,0.2778879]
[1763442767908,0.2047,3010.8,3010.7,0.00498306]
[1763442768112,0.5315,3010.8,3010.7,0.00498306]
[1763442769214,0.2047,3010.8,3010.7,0.00498306]
[1763442769416,0.5315,3010.8,3010.7,0.00498306]
[1763442769919,0.2047,3010.8,3010.7,0.00498306]
[1763442770510,0.5315,3010.8,3010.7,0.00498306]
[1763442772521,0.57717383,3010.8,3010.7,0.00498306]
[1763442774719,0.3268,3009.9,3009.6,1.16014051]
[1763442775015,0.2047,3009.0,3008.7,1.74864349]
[1763442775317,0.04567383,3008.9,3008.7,1.74864349]
[1763442775822,0.04567383,3008.9,3008.7,1.75207673]
[1763442775823,0.04858887,3008.9,3008.7,1.75207673]
[1763442776117,0.2047,3009.0,3008.7,1.75207673]
[1763442777023,0.20851212,3009.0,3008.7,1.75207673]
[1763442777612,0.00498306,3009.1,3008.7,1.75207673]
[1763442777815,0.2047,3009.6,3008.7,1.75207673]
[1763442778011,0.2047,3009.6,3009.5,1.74864349]
[1763442778320,0.5077,3009.6,3009.5,1.74864349]
[1763442778523,0.51160415,3009.6,3009.5,1.74864349]
[1763442779828,0.51160415,3009.6,3009.1,1.74864349]
[1763442780321,0.1817,3009.0,3008.7,1.75207673]
[1763442780927,0.1817,3009.0,3008.9,1.98453289]
[1763442781628,0.00390415,3009.6,3008.9,7.98453289]
[1763442781927,0.00390415,3009.6,3008.7,0.00343324]
[1763442781928,0.18560415,3009.6,3009.2,1.16603891]
[1763442782421,1.35967592,3011.4,3009.1,3.73359126]
[1763442782422,0.1817,3011.4,3009.5,1.16603891]
[1763442782619,0.1817,3011.4,3011.3,1.98453289]
[1763442782816,0.1817,3012.0,3011.8,1.98453289]
[1763442783014,0.1817,3012.6,3011.8,1.98453289]
[1763442783427,0.00328754,3012.5,3012.3,1.98453289]
[1763442784031,0.00328754,3012.5,3012.3,2.25782103]
[1763442784728,0.1817,3012.1,3011.9,0.00498306]
[1763442785128,0.1817,3012.1,3011.9,0.26749439]
[1763442785432,0.00328754,3012.5,3011.9,2.25202728]
[1763442786319,0.1817,3012.1,3011.9,2.25202728]
[1763442787529,0.00328754,3012.5,3011.9,2.25202728]
[1763442787827,0.1817,3012.1,3011.9,0.26749439]
[1763442788619,0.04567383,3012.0,3011.9,0.26749439]
[1763442789427,0.303,3011.9,3011.2,1.98453289]
[1763442789625,6.04567383,3012.0,3010.7,1.98453289]
[1763442789626,0.1817,3011.4,3010.7,1.98453289]
[1763442789830,0.04567383,3011.1,3010.7,2.24812598]
[1763442790520,0.04567383,3011.1,3010.7,2.25091363]
[1763442790719,0.04567383,3010.9,3010.7,2.25091363]
[1763442790916,0.1817,3011.4,3010.8,1.98453289]
[1763442791119,0.1817,3011.4,3011.3,1.98453289]
[1763442792133,0.1817,3012.1,3011.3,1.98453289]
[1763442792329,0.1817,3011.4,3011.3,1.98453289]
[1763442793423,0.1817,3011.4,3010.7,9.73941965]
[1763442793424,0.4847,3011.4,3010.7,1.43241965]
[1763442793640,0.1817,3010.8,3010.7,0.26638074]
[1763442795137,0.1817,3011.4,3010.7,0.26638074]
[1763442795331,0.1817,3011.4,3011.1,1.98453289]
[1763442797739,0.04567383,3011.3,3011.1,1.98453289]
[1763442797938,0.303,3011.2,3011.1,1.98453289]
[1763442798139,0.4847,3010.8,3010.7,0.26638074]
[1763442798338,0.1817,3010.8,3010.7,0.26638074]
[1763442798824,0.22737383,3010.8,3010.7,0.26638074]
[1763442799630,0.53037383,3010.8,3010.7,0.26638074]
[1763442802049,0.1817,3012.1,3010.7,6.26638074]
[1763442802341,0.1817,3012.1,3011.7,1.98453289]
[1763442802544,0.3116,3011.8,3011.7,1.98453289]
[1763442802737,0.1817,3012.1,3011.7,1.98453289]
[1763442805443,0.00328754,3012.5,3011.7,1.98453289]
[1763442805636,0.00328754,3012.5,3011.4,1.16603891]
[1763442805637,0.00328754,3012.5,3012.3,1.98453289]
[1763442806732,0.04567383,3012.4,3012.3,1.98453289]
[1763442808838,0.0346,3013.7,3012.4,6.0]
[1763442809031,0.0346,3013.7,3012.3,3.1505718]
[1763442809032,0.0346,3013.7,3013.3,1.98453289]
[1763442809836,0.03745859,3013.7,3013.3,1.98819556]
[1763442811639,0.1842,3015.0,3013.5,1.98453289]
[1763442811847,0.1842,3014.4,3014.2,1.98453289]
[1763442812647,0.0027553,3014.4,3014.2,1.98453289]
[1763442813044,0.1842,3016.2,3014.3,1.16603891]
[1763442813245,0.1842,3015.0,3014.4,8.296]
[1763442813440,0.1842,3016.2,3015.1,1.98453289]
[1763442814249,0.1842,3016.8,3016.1,1.98453289]
[1763442814446,0.1842,3016.2,3016.1,1.98453289]
[1763442815151,0.18821146,3016.2,3016.1,1.98872212]
[1763442815752,0.00401146,3016.2,3016.1,1.98872212]
[1763442816245,0.1842,3016.2,3016.1,1.98872212]
[1763442816450,0.1842,3016.8,3016.1,1.98872212]
[1763442816744,0.1842,3016.2,3016.1,1.98872212]
[1763442817154,0.18657903,3016.2,3016.1,1.98872212]
[1763442817645,0.1842,3015.6,3015.2,1.98453289]
[1763442818445,0.1842,3015.6,3015.0,0.00497455]
[1763442818647,0.1842,3015.6,3015.0,0.00847043]
[1763442821256,0.3061,3015.1,3015.0,0.00847043]
[1763442821658,0.1842,3015.6,3015.0,0.00847043]
[1763442822058,0.3061,3015.1,3015.0,0.00847043]
[1763442823153,0.1842,3015.6,3015.0,0.00847043]
[1763442823354,0.1842,3015.6,3015.3,1.98453289]
[1763442824360,0.3061,3015.1,3015.0,0.00847043]
[1763442825366,0.1842,3015.6,3015.0,6.00847043]
[1763442825668,0.4903,3015.6,3015.5,1.98453289]
[1763442828568,0.4903,3015.6,3015.0,1.99300332]
[1763442828755,0.4903,3015.6,3014.2,0.26870893]
[1763442828756,0.1842,3014.4,3014.2,0.26870893]
[1763442828959,0.1842,3013.8,3013.1,2.198]
[1763442829260,0.1842,3013.8,3013.5,1.98453289]
[1763442829764,0.18671237,3013.8,3013.5,1.98706657]
[1763442833567,0.3061,3013.6,3013.5,1.98706657]
[1763442833774,0.3061,3013.6,3013.5,0.00253368]
[1763442833967,0.18671237,3013.8,3013.5,0.00253368]
[1763442835372,0.3061,3013.6,3013.5,0.00253368]
[1763442836767,0.18671237,3013.8,3013.5,1.98706657]
[1763442837168,0.03470425,3013.7,3013.5,1.98706657]
[1763442837470,0.1842,3014.4,3013.5,1.98706657]
[1763442837672,0.4425,3014.4,3013.5,0.00253368]
[1763442837868,0.4425,3014.4,3013.8,1.98453289]
[1763442838070,0.1842,3014.4,3013.8,1.98453289]
[1763442838772,0.18736096,3014.4,3013.8,1.98453289]
[1763442839074,0.00316096,3014.4,3014.3,1.98453289]
[1763442839273,0.16486096,3014.4,3014.3,1.98453289]
[1763442839570,0.00316096,3014.4,3014.3,1.98453289]
[1763442840272,1.33967592,3016.2,3014.3,12.20253983]
[1763442840578,0.1617,3016.2,3015.7,1.98453289]
[1763442840770,0.2583,3015.8,3015.2,1.98453289]
[1763442840968,0.2583,3015.3,3014.9,0.00497455]
[1763442841173,0.1617,3015.0,3014.9,0.00497455]
[1763442841374,0.16555414,3015.0,3014.9,0.00734235]
[1763442841877,0.42385414,3015.0,3014.9,0.00734235]
[1763442842265,0.16555414,3015.0,3014.9,0.00734235]
[1763442842674,0.42385414,3015.0,3014.9,0.00734235]
[1763442843672,0.16555414,3015.0,3014.9,0.00734235]
[1763442843872,0.42385414,3015.0,3014.9,0.00734235]
[1763442846675,0.42,3014.4,3014.3,1.74481699]
[1763442847582,0.02136852,3014.4,3014.3,1.74481699]
[1763442847784,0.18306852,3014.4,3014.3,1.74726549]
[1763442848680,0.00497455,3014.7,3014.3,1.74726549]
[1763442848880,0.1617,3014.4,3014.3,1.74726549]
[1763442849778,1.17797592,3016.0,3014.3,1.74726549]
[1763442849779,1.17797592,3016.0,3014.4,9.327]
[1763442849974,0.1617,3016.8,3015.9,1.74481699]
[1763442850177,0.1617,3016.8,3016.4,1.74481699]
[1763442850888,0.1651698,3016.8,3016.4,1.74481699]
[1763442853188,0.2583,3016.1,3015.8,1.74481699]
[1763442854281,0.2583,3015.7,3015.6,1.74979154]
[1763442856078,0.1617,3016.2,3015.6,1.74979154]
[1763442856278,0.2583,3015.7,3015.6,1.74979154]
[1763442856592,0.1617,3016.2,3015.6,1.74979154]
[1763442856791,0.42,3016.2,3016.1,1.74481699]
[1763442858387,0.42,3016.2,3015.7,1.74481699]
[1763442858584,0.2583,3015.8,3015.7,1.74481699]
[1763442859187,0.1617,3016.2,3015.7,1.74481699]
[1763442859389,0.1617,3016.2,3016.1,1.74481699]
[1763442860192,0.4544,3016.2,3016.1,1.74481699]
[1763442860991,0.1809,3016.2,3016.1,1.74481699]
[1763442861186,0.00497455,3016.3,3016.1,1.74481699]
[1763442862182,0.1809,3016.2,3016.1,1.74481699]
[1763442864497,0.00497455,3016.3,3016.1,1.74481699]
[1763442864998,0.1809,3016.2,3016.1,1.74481699]
[1763442865499,0.00497455,3016.3,3016.1,1.74481699]
[1763442865899,0.1651698,3016.8,3016.1,1.74481699]
[1763442866101,0.1651698,3016.8,3016.6,1.74481699]
[1763442866301,0.1651698,3016.8,3016.6,1.74811765]
[1763442868889,0.1617,3017.4,3016.6,0.00330066]
[1763442869089,0.1617,3017.4,3017.3,1.74481699]
[1763442869893,0.16536569,3017.4,3017.3,1.74481699]
[1763442870289,0.1617,3018.0,3017.3,1.74481699]
[1763442870499,0.2876,3017.4,3017.3,0.00497455]
[1763442871295,0.29043236,3017.4,3017.3,0.00497455]
[1763442871498,0.29043236,3017.4,3016.6,2.01233687]
[1763442871499,0.2876,3016.7,3016.6,2.01233687]
[1763442871697,0.2876,3016.7,3016.6,1.74811765]
[1763442872999,0.187,3016.8,3016.6,1.74811765]
[1763442874699,0.2876,3016.7,3016.6,1.74811765]
[1763442876501,0.2876,3016.4,3016.3,0.00497455]
[1763442876701,0.2876,3016.4,3015.9,0.87256842]
[1763442876702,0.2876,3015.8,3015.6,1.74481699]
[1763442876903,0.2876,3015.7,3015.6,1.74481699]
[1763442877711,0.2876,3015.7,3015.6,1.74834423]
[1763442878113,0.187,3016.2,3015.6,1.74834423]
[1763442878506,0.2876,3015.7,3015.6,1.74834423]
[1763442879603,0.187,3016.2,3015.6,1.74834423]
[1763442879916,0.2876,3016.1,3016.0,1.74481699]
[1763442880414,0.187,3016.2,3016.0,1.74481699]
[1763442881214,0.2876,3015.9,3015.8,2.61738541]
[1763442881417,0.2876,3015.9,3015.8,1.74481699]
[1763442881715,0.187,3016.2,3015.8,1.74481699]
[1763442883605,0.187,3016.2,3015.8,2.61738541]
[1763442885111,0.2876,3015.9,3015.8,2.61738541]
[1763442885313,0.2876,3015.9,3015.8,1.74481699]
[1763442888904,0.2876,3015.9,3015.4,0.87256842]
[1763442889103,0.2876,3015.4,3015.3,0.00497455]
[1763442890108,0.2876,3015.4,3015.3,0.00823154]
[1763442897620,0.288,3014.7,3014.4,2.61738541]
[1763442898119,0.1811,3015.0,3014.6,0.2848]
[1763442898316,0.187,3015.5,3014.8,1.74481699]
[1763442898815,0.19464716,3015.5,3014.8,1.75344743]
[1763442899314,0.19464716,3015.5,3014.8,2.02582277]
[1763442899516,0.288,3014.9,3014.8,2.02582277]
[1763442900520,0.19464716,3015.5,3014.8,2.31062277]
[1763442900717,0.288,3014.9,3014.8,2.03824743]
[1763442900921,0.4228,3014.5,3014.1,1.74481699]
[1763442901519,0.1811,3015.0,3014.4,0.2848]
[1763442901722,0.288,3014.6,3014.5,1.74481699]
[1763442902026,0.288,3014.6,3014.5,1.74776313]
[1763442902220,0.1811,3015.0,3014.5,2.11416313]
[1763442902523,0.19464716,3015.5,3014.9,1.74481699]
[1763442902824,0.19464716,3015.5,3014.9,1.97689542]
[1763442903422,0.00764716,3015.5,3015.0,0.1775]
[1763442903819,0.288,3015.0,3014.9,0.87256842]
[1763442904117,0.288,3014.6,3014.5,0.00294614]
[1763442904326,0.18874716,3015.5,3014.9,0.2848]
[1763442904621,0.00764716,3015.5,3015.0,0.1775]
[1763442905518,0.00764716,3015.5,3015.4,0.2848]
[1763442906826,0.29564716,3015.5,3015.1,0.87256842]
[1763442907015,0.00764716,3015.5,3015.4,0.2848]
[1763442907411,1.245,3016.9,3015.5,0.1775]
[1763442907412,1.18968478,3016.9,3015.5,0.1775]
[1763442907618,1.37078478,3017.0,3015.5,1.05006842]
[1763442907812,0.1811,3017.0,3015.6,0.87256842]
[1763442908017,0.288,3015.7,3015.5,0.87256842]
[1763442908425,0.288,3015.7,3015.4,1.97689542]
[1763442908426,0.29134811,3015.7,3015.4,2.84946384]
[1763442908820,0.00334811,3015.7,3015.6,0.2848]
[1763442909022,0.288,3015.6,3015.5,0.87256842]
[1763442909228,0.288,3015.4,3015.3,0.87754297]
[1763442909428,0.288,3015.4,3015.3,0.00497455]
[1763442912128,0.00334811,3015.7,3015.3,0.00497455]
[1763442914119,0.288,3015.4,3015.3,0.00497455]
[1763442914330,0.00334811,3015.7,3015.0,0.87256842]
[1763442914331,0.288,3015.1,3015.0,0.87256842]
[1763442914626,0.288,3014.6,3014.5,0.00294614]
[1763442914832,0.1811,3015.0,3014.5,0.00294614]
[1763442915130,0.288,3014.6,3014.5,0.00294614]
[1763442915723,0.1811,3015.0,3014.5,0.28774614]
[1763442915923,0.1811,3015.5,3014.5,0.46524614]
[1763442917441,0.288,3014.6,3014.5,0.00294614]
[1763442917731,0.1811,3015.0,3014.5,0.00294614]
[1763442918124,1.37078478,3015.5,3014.5,0.18044614]
[1763442918323,0.1811,3015.5,3014.5,0.18044614]
[1763442918524,0.288,3014.6,3014.5,0.00294614]
[1763442918725,0.2912,3014.6,3014.5,0.00294614]
[1763442918924,0.2912,3014.3,3014.2,0.00497455]
[1763442919123,0.2912,3014.3,3013.2,2.01388162]
[1763442919330,0.2912,3014.3,3013.1,1.74905837]
[1763442919536,0.2912,3014.3,3013.1,2.01143614]
[1763442919834,0.2912,3014.3,3013.5,0.1665]
[1763442920229,0.00497455,3014.2,3014.1,0.2944]
[1763442920836,0.00497455,3014.2,3013.6,0.00497455]
[1763442921139,0.00497455,3014.2,3014.1,0.2944]
[1763442921438,0.00497455,3014.2,3013.6,0.00497455]
[1763442923737,0.2912,3013.7,3013.6,0.00497455]
[1763442924734,0.00497455,3014.2,3013.6,0.00497455]
[1763442925236,0.2912,3013.7,3013.6,0.00497455]
[1763442927144,0.00497455,3014.2,3013.6,0.00497455]
[1763442927348,0.00497455,3014.2,3013.6,1.98186997]
[1763442931046,0.00497455,3014.2,3013.6,0.00497455]
[1763442933041,0.28,3013.7,3013.6,0.00497455]
[1763442933244,0.00497455,3014.2,3013.6,0.00497455]
[1763442933548,0.28,3013.7,3013.6,0.00497455]
[1763442934847,0.00497455,3014.2,3013.6,0.29787455]
[1763442939050,0.00497455,3014.2,3014.1,0.2929]
[1763442941952,0.00497455,3014.2,3014.1,2.26979542]
[1763442942252,0.1811,3015.5,3014.1,8.26979542]
[1763442942451,0.1811,3015.5,3014.1,2.26979542]
[1763442943154,0.00497455,3015.1,3014.1,2.26979542]
[1763442944350,0.00497455,3015.1,3015.0,0.2929]
[1763442945047,0.28497455,3015.1,3015.0,0.2929]
[1763442946748,0.28497455,3015.1,3014.6,1.97689542]
[1763442947645,0.00497455,3015.1,3015.0,0.4567]
[1763442947957,0.00497455,3015.1,3014.6,1.97689542]
[1763442947958,0.28497455,3015.1,3014.6,1.97689542]
[1763442949455,0.00497455,3015.1,3014.6,2.26979542]
[1763442950158,0.00497455,3015.1,3015.0,0.2929]
[1763442951049,0.28497455,3015.1,3015.0,0.2929]
[1763442951457,0.28497455,3015.1,3014.6,1.97689542]
[1763442951750,0.28,3014.6,3014.1,1.16547155]
[1763442951960,0.1689,3014.5,3014.0,2.14069542]
[1763442952143,0.28,3014.1,3013.7,1.16547155]
[1763442952352,0.1689,3014.5,3014.0,0.4567]
[1763442953863,0.1689,3015.0,3014.0,0.4567]
[1763442954655,0.1689,3015.0,3014.0,2.43359542]
[1763442954862,0.00497455,3015.1,3014.0,2.43359542]
[1763442955468,0.00497455,3015.1,3014.0,3.59906697]
[1763442955755,0.28497455,3015.1,3014.5,0.1638]
[1763442956959,0.1068,3015.0,3014.0,1.32927155]
[1763442957759,0.1068,3015.0,3014.0,0.1638]
[1763442958762,0.1068,3015.0,3014.0,0.1527]
[1763442960860,0.00334811,3015.7,3015.6,0.2542]
[1763442961564,1.18968478,3016.8,3015.6,0.2542]
[1763442961755,1.941,3016.9,3015.6,0.2542]
[1763442961957,0.00497455,3016.6,3016.0,0.1527]
[1763442962660,0.00816452,3016.6,3016.0,0.15669139]
[1763442968264,0.00816452,3016.6,3016.5,0.4069]
[1763442968966,0.00816452,3016.6,3016.5,0.2542]
[1763442969165,0.00816452,3016.6,3016.5,0.4069]
[1763442969473,13.17528478,3018.7,3016.5,9.31592808]
[1763442969666,13.17528478,3018.7,3017.3,1.74355653]
[1763442970268,11.9856,3018.7,3017.3,1.74355653]
[1763442970569,0.00497455,3018.2,3017.6,0.00497455]
[1763442970772,0.2521,3017.7,3017.6,0.00497455]
[1763442971171,0.00497455,3018.2,3017.6,0.25917455]
[1763442972761,0.2521,3017.7,3017.6,0.00497455]
[1763442975469,0.00497455,3018.2,3017.6,0.25917455]
[1763442977170,0.0346,3018.7,3018.6,0.2542]
[1763442977481,0.09064158,3019.2,3019.1,0.2542]
[1763442978285,0.00411347,3019.2,3019.1,0.25748315]
[1763442978687,0.00411347,3019.2,3019.1,0.00328315]
[1763442978986,0.00411347,3019.2,3019.1,0.23858315]
[1763442979382,6.24861347,3019.2,3018.0,0.1527]
[1763442979682,1.74355653,3019.0,3017.6,0.00497455]
[1763442980189,0.00411347,3019.2,3017.6,0.00497455]
[1763442980483,0.00411347,3019.2,3017.6,0.00769132]
[1763442983283,1.74355653,3019.0,3017.6,0.00769132]
[1763442983684,0.00411347,3019.2,3017.6,0.00769132]
[1763442987985,0.00411347,3019.2,3016.6,0.86412807]
[1763442987986,1.98805653,3017.7,3016.2,0.86412807]
[1763442988291,1.98805653,3017.7,3015.6,2.51026515]
[1763442988292,1.74355653,3017.0,3015.6,0.1348]
[1763442988697,0.149,3017.4,3015.6,0.1348]
[1763442988989,0.149,3017.4,3015.9,1.74355653]
[1763442989195,0.00497455,3017.0,3016.4,0.00497455]
[1763442990392,0.00497455,3017.0,3016.9,0.2271]
[1763442991500,0.00497455,3017.0,3016.9,6.2271]
[1763442991899,0.00497455,3017.0,3016.9,0.2271]
[1763442992396,0.00363994,3017.4,3017.3,0.2271]
[1763442994301,3.994e-05,3017.4,3017.3,0.2271]
[1763442997299,3.994e-05,3017.4,3017.3,6.2271]
[1763442998099,3.994e-05,3017.4,3017.3,0.2271]
[1763442998797,3.994e-05,3017.4,3017.3,1.97065653]
[1763442999004,3.994e-05,3017.4,3017.3,0.2271]
[1763442999500,3.994e-05,3017.4,3017.3,1.97065653]
[1763443000199,3.994e-05,3017.4,3016.9,0.86412807]
[1763443000402,3.994e-05,3017.4,3016.8,1.30027155]
[1763443000403,3.994e-05,3017.4,3016.8,0.1348]
[1763443000603,3.994e-05,3017.4,3017.3,0.2271]
[1763443002795,3.994e-05,3017.4,3017.3,1.97065653]
[1763443003902,3.994e-05,3017.4,3017.3,0.2271]
[1763443013616,3.994e-05,3017.4,3017.0,0.2271]
[1763443014510,3.994e-05,3017.4,3016.8,2.7424846]
[1763443014716,3.994e-05,3017.4,3016.9,0.86412807]
[1763443016504,3.994e-05,3017.4,3017.0,0.86412807]
[1763443016816,1.18968478,3018.8,3018.5,0.2348]
[1763443017115,1.18968478,3019.4,3018.5,0.3804]
[1763443017816,1.19369198,3019.4,3018.6,0.00497455]
[1763443020320,0.0040072,3019.4,3018.8,1.74355653]
[1763443020619,0.0040072,3019.4,3019.3,0.2348]
[1763443021323,0.2506072,3019.4,3018.7,0.86412807]
[1763443021617,1.18968478,3020.3,3019.3,0.2348]
[1763443021824,0.1464,3020.5,3019.3,1.09892807]
[1763443022120,0.2466,3019.4,3019.3,0.2348]
[1763443022315,0.0789,3020.0,3019.3,0.2348]
[1763443022717,0.08158698,3020.0,3019.3,0.2348]
[1763443023315,0.24928698,3020.0,3019.1,1.74355653]
[1763443023512,1.18968478,3020.9,3020.7,0.2348]
[1763443023714,1.18968478,3021.6,3021.0,0.1456]
[1763443024017,1.33608478,3022.0,3021.0,0.1456]
[1763443024225,0.1464,3022.0,3021.0,0.1456]
[1763443024411,0.15003384,3022.0,3021.0,0.14945999]
[1763443024827,0.2466,3021.1,3021.0,0.00385999]
[1763443025121,1.18968478,3021.9,3021.0,0.00385999]
[1763443025331,0.2466,3021.1,3020.5,0.12856541]
[1763443025510,0.2466,3020.6,3020.5,0.00496541]
[1763443026422,0.2466,3020.6,3020.5,0.00881089]
[1763443027820,3.998,3021.5,3020.5,0.00881089]
[1763443029521,0.1464,3020.5,3019.5,0.1456]
[1763443029726,0.1464,3021.0,3019.5,0.1456]
[1763443029926,1.8274,3021.0,3019.5,0.40687233]
[1763443030120,1.8274,3021.0,3019.5,0.1456]
[1763443030516,0.2466,3020.0,3019.9,0.00496541]
[1763443031026,0.2466,3019.6,3019.5,0.00325993]
[1763443031231,0.1464,3020.5,3018.6,0.1456]
[1763443031525,0.661,3020.4,3018.3,0.27084676]
[1763443031728,0.661,3020.4,3018.0,0.1456]
[1763443032227,0.66502413,3020.4,3018.9,0.00496541]
[1763443032435,8.211,3020.3,3018.9,0.00496541]
[1763443032932,0.00402413,3020.4,3019.2,2.11629117]
[1763443033322,0.15042413,3020.4,3019.2,0.1456]
[1763443035930,0.00402413,3020.4,3019.2,2.11629117]
[1763443036133,0.15042413,3020.4,3019.2,2.11629117]
[1763443036529,0.15042413,3020.4,3019.2,0.1456]
[1763443036736,0.15042413,3020.4,3018.9,0.00496541]
[1763443037036,0.2466,3019.0,3018.9,0.00496541]
[1763443037622,0.2466,3019.0,3018.0,0.00360107]
[1763443038026,0.2466,3019.0,3018.0,0.14920107]
[1763443038531,0.2466,3018.1,3018.0,0.00360107]
[1763443038828,0.25027852,3018.1,3018.0,0.00360107]
[1763443039938,0.00367852,3018.1,3018.0,0.00360107]
[1763443040227,0.00367852,3018.1,3018.0,0.38500107]
[1763443041328,0.00496541,3018.8,3018.7,0.2419]
[1763443042330,0.00810753,3018.8,3018.7,0.2419]
[1763443043038,0.00810753,3018.8,3018.2,1.97069117]
[1763443043330,0.00810753,3018.8,3018.0,0.14310107]
[1763443043534,0.00810753,3018.8,3018.0,0.00360107]
[1763443044235,0.00810753,3018.8,3018.0,0.14310107]
[1763443049737,0.00810753,3018.8,3018.7,0.237]
[1763443051142,0.1464,3019.8,3018.7,0.237]
[1763443051434,0.1464,3020.4,3018.7,2.20769117]
[1763443052235,0.00496541,3019.9,3019.2,0.14286541]
[1763443052442,0.2341,3019.3,3019.2,0.00496541]
[1763443052637,0.0938,3019.8,3019.2,0.37986541]
[1763443052839,0.00496541,3019.9,3019.8,0.237]
[1763443053037,0.00496541,3019.9,3019.8,0.3749]
[1763443053242,0.0039216,3020.4,3020.3,0.237]
[1763443053447,0.0039216,3020.4,3020.3,0.24113135]
[1763443053939,0.3348216,3020.4,3020.3,0.00413135]
[1763443054341,0.0039216,3020.4,3020.3,0.24113135]
[1763443054840,0.2380216,3020.4,3020.3,0.00413135]
[1763443055148,0.3864216,3020.4,3020.3,0.00413135]
[1763443055444,6.3864216,3020.4,3019.2,0.14286541]
[1763443055745,0.3864216,3020.4,3019.2,0.14286541]
[1763443056340,0.3864216,3020.4,3019.2,0.14681194]
[1763443058548,0.3864216,3020.4,3019.2,0.00891194]
[1763443058747,0.3864216,3020.4,3019.2,0.14681194]
[1763443061444,0.3864216,3020.4,3019.2,2.11750311]
[1763443061847,0.0039216,3020.4,3019.2,2.11750311]
[1763443062046,0.0039216,3020.4,3019.2,2.98163118]
[1763443062242,0.0039216,3020.4,3019.2,2.11750311]
[1763443062746,0.0039216,3020.4,3019.2,0.14681194]
[1763443063948,0.0039216,3020.4,3019.2,0.00891194]
[1763443064653,0.2341,3019.3,3019.2,0.00891194]
[1763443065251,0.0039216,3020.4,3020.3,0.237]
[1763443065455,1.77883049,3021.3,3020.9,0.237]
[1763443065642,0.1484,3021.5,3020.5,0.1379]
[1763443065848,0.1484,3021.5,3020.0,0.1379]
[1763443066349,0.15152474,3021.5,3020.4,0.00496541]
[1763443066751,0.15152474,3021.5,3020.4,0.14286541]
[1763443067355,0.00312474,3021.5,3020.4,0.14286541]
[1763443067746,0.2341,3020.5,3020.4,0.00496541]
[1763443069249,0.1484,3020.4,3019.5,0.1379]
[1763443069450,0.1484,3020.4,3019.2,0.00394653]
[1763443070260,0.00496541,3020.1,3019.5,0.00496541]
[1763443073861,0.00496541,3020.1,3019.2,0.00394653]
[1763443073862,0.2341,3019.3,3018.5,0.86412807]
[1763443074062,1.8311,3019.3,3017.7,0.86412807]
[1763443074758,1.8311,3019.3,3017.6,0.86412807]
[1763443074959,0.2341,3018.4,3018.3,0.00496541]